[Event "Late-Titled-Tuesday-Blitz-March-05-2024"]
[Site "Chess.com"]
[Date "2024.03.05"]
[Round "9"]
[White "Mikasinski"]
[Black "kids2010"]
[Result "0-1"]
[WhiteElo "2688"]
[BlackElo "2813"]
[TimeControl "180+1"]
[EndTime "15:40:58 PST"]
[Termination "kids2010 won by checkmate"]

1. e4 {[%clk 0:03:00.9]} 1... c6 {[%clk 0:02:57.8]} 2. d4 {[%clk 0:03:01]} 2...
d5 {[%clk 0:02:55.4]} 3. e5 {[%clk 0:03:00.6]} 3... Bf5 {[%clk 0:02:52]} 4. h4
{[%clk 0:03:00.6]} 4... h5 {[%clk 0:02:45.1]} 5. Bg5 {[%clk 0:03:00.2]} 5... f6
{[%clk 0:02:22.4]} 6. Be3 {[%clk 0:02:56.8]} 6... fxe5 {[%clk 0:02:18]} 7. dxe5
{[%clk 0:02:55.7]} 7... e6 {[%clk 0:02:18.5]} 8. Bd3 {[%clk 0:02:55.1]} 8... Ne7
{[%clk 0:02:17.1]} 9. Ne2 {[%clk 0:02:54.4]} 9... Nd7 {[%clk 0:02:09.5]} 10. Bg5
{[%clk 0:02:44.6]} 10... Qa5+ {[%clk 0:02:06.7]} 11. Bd2 {[%clk 0:02:26]} 11...
Qc7 {[%clk 0:02:00.9]} 12. f4 {[%clk 0:02:21.1]} 12... O-O-O {[%clk 0:01:58.2]}
13. Nbc3 {[%clk 0:01:56.2]} 13... Nc5 {[%clk 0:01:53.5]} 14. Be3 {[%clk
0:01:54.6]} 14... Bxd3 {[%clk 0:01:43.5]} 15. cxd3 {[%clk 0:01:51.9]} 15... Nf5
{[%clk 0:01:42]} 16. Bxc5 {[%clk 0:01:42]} 16... Bxc5 {[%clk 0:01:42.9]} 17. d4
{[%clk 0:01:42.5]} 17... Be7 {[%clk 0:01:38]} 18. g3 {[%clk 0:01:38]} 18... Kb8
{[%clk 0:01:30.2]} 19. Qd3 {[%clk 0:01:26.6]} 19... c5 {[%clk 0:01:22]} 20. O-O
{[%clk 0:01:19]} 20... cxd4 {[%clk 0:01:17.4]} 21. Nb5 {[%clk 0:01:18.7]} 21...
Qb6 {[%clk 0:01:17.3]} 22. Kh2 {[%clk 0:01:10.7]} 22... Bc5 {[%clk 0:01:08.5]}
23. b4 {[%clk 0:01:07]} 23... Bxb4 {[%clk 0:01:00.7]} 24. Rab1 {[%clk
0:01:07.1]} 24... Qa5 {[%clk 0:00:50.7]} 25. Nbxd4 {[%clk 0:00:59.3]} 25... Nxd4
{[%clk 0:00:27.9]} 26. Nxd4 {[%clk 0:00:57.6]} 26... Rc8 {[%clk 0:00:26.8]} 27.
Rf2 {[%clk 0:00:23.5]} 27... Rc3 {[%clk 0:00:18]} 28. Qg6 {[%clk 0:00:23.2]}
28... Qc5 {[%clk 0:00:13.5]} 29. Qxg7 {[%clk 0:00:17.2]} 29... Rc8 {[%clk
0:00:13.7]} 30. Rfb2 {[%clk 0:00:07]} 30... Rc4 {[%clk 0:00:10.3]} 31. Nxe6
{[%clk 0:00:05.5]} 31... Qb6 {[%clk 0:00:09.4]} 32. Ng5 {[%clk 0:00:02.4]} 32...
d4 {[%clk 0:00:09]} 33. e6 {[%clk 0:00:02.6]} 33... d3 {[%clk 0:00:09.1]} 34.
Qe5+ {[%clk 0:00:03.1]} 34... Ka8 {[%clk 0:00:08.4]} 35. Nf3 {[%clk 0:00:03.1]}
35... Rc2+ {[%clk 0:00:08.3]} 36. Kh3 {[%clk 0:00:03]} 36... Qc6 {[%clk
0:00:08.4]} 37. Nd4 {[%clk 0:00:02]} 37... Qg2# {[%clk 0:00:08.2]} 0-1

[Event "Late-Titled-Tuesday-Blitz-March-05-2024"]
[Site "Chess.com"]
[Date "2024.03.05"]
[Round "9"]
[White "Abund"]
[Black "ACollins05"]
[Result "1-0"]
[WhiteElo "2801"]
[BlackElo "2605"]
[TimeControl "180+1"]
[EndTime "15:41:05 PST"]
[Termination "Abund won by checkmate"]

1. e4 {[%clk 0:02:56.7]} 1... c5 {[%clk 0:02:57.5]} 2. Nf3 {[%clk 0:02:56.8]}
2... d6 {[%clk 0:02:57.4]} 3. Bb5+ {[%clk 0:02:54.3]} 3... Bd7 {[%clk
0:02:56.9]} 4. c4 {[%clk 0:02:54.3]} 4... Nf6 {[%clk 0:02:56.4]} 5. Nc3 {[%clk
0:02:54.4]} 5... Nc6 {[%clk 0:02:56.3]} 6. O-O {[%clk 0:02:42]} 6... g6 {[%clk
0:02:56.3]} 7. d3 {[%clk 0:02:38.9]} 7... Bg7 {[%clk 0:02:55.6]} 8. h3 {[%clk
0:02:36.8]} 8... O-O {[%clk 0:02:55.2]} 9. Be3 {[%clk 0:02:36]} 9... a6 {[%clk
0:02:54.8]} 10. Ba4 {[%clk 0:02:35.8]} 10... Rb8 {[%clk 0:02:49.3]} 11. Rb1
{[%clk 0:02:30.6]} 11... Ne8 {[%clk 0:02:34.3]} 12. Qd2 {[%clk 0:02:18.7]} 12...
Nc7 {[%clk 0:02:32.9]} 13. Bxc6 {[%clk 0:02:08.6]} 13... Bxc6 {[%clk 0:02:32.8]}
14. b4 {[%clk 0:02:07.7]} 14... b6 {[%clk 0:02:23.9]} 15. a3 {[%clk 0:02:02.3]}
15... f5 {[%clk 0:02:15.5]} 16. Bh6 {[%clk 0:01:48.3]} 16... fxe4 {[%clk
0:02:09.1]} 17. Nxe4 {[%clk 0:01:44.3]} 17... Qe8 {[%clk 0:01:39.3]} 18. Rfe1
{[%clk 0:01:35.8]} 18... Qf7 {[%clk 0:01:34.9]} 19. Bxg7 {[%clk 0:01:28.5]}
19... Qxg7 {[%clk 0:01:30.7]} 20. d4 {[%clk 0:01:26.9]} 20... cxb4 {[%clk
0:01:21.6]} 21. d5 {[%clk 0:01:20.1]} 21... Bd7 {[%clk 0:01:18.5]} 22. axb4
{[%clk 0:01:07.3]} 22... Bxh3 {[%clk 0:01:16.6]} 23. Neg5 {[%clk 0:01:05.1]}
23... Bf5 {[%clk 0:01:14.4]} 24. Rb3 {[%clk 0:01:02.2]} 24... h6 {[%clk
0:01:08]} 25. Ne4 {[%clk 0:00:58.1]} 25... g5 {[%clk 0:01:07.6]} 26. Nd4 {[%clk
0:00:53.2]} 26... Bd7 {[%clk 0:01:03]} 27. Rg3 {[%clk 0:00:48.6]} 27... b5
{[%clk 0:00:56.9]} 28. Nxg5 {[%clk 0:00:45.6]} 28... Kh8 {[%clk 0:00:41.8]} 29.
Nge6 {[%clk 0:00:44.6]} 29... Qf6 {[%clk 0:00:41.4]} 30. Nxc7 {[%clk 0:00:39.4]}
30... bxc4 {[%clk 0:00:35]} 31. Nce6 {[%clk 0:00:39.8]} 31... Rfc8 {[%clk
0:00:27.5]} 32. Rf3 {[%clk 0:00:36.3]} 32... Qg6 {[%clk 0:00:25.5]} 33. Qc3
{[%clk 0:00:35.3]} 33... Kh7 {[%clk 0:00:24.4]} 34. Rg3 {[%clk 0:00:32.8]} 34...
Qf6 {[%clk 0:00:22.1]} 35. Ree3 {[%clk 0:00:33.2]} 35... a5 {[%clk 0:00:20.3]}
36. Ref3 {[%clk 0:00:33.5]} 36... Qe5 {[%clk 0:00:19.4]} 37. Rf7+ {[%clk
0:00:24.8]} 37... Kh8 {[%clk 0:00:19]} 38. Rgg7 {[%clk 0:00:23.7]} 38... Bxe6
{[%clk 0:00:19.2]} 39. dxe6 {[%clk 0:00:12]} 39... axb4 {[%clk 0:00:18.7]} 40.
Rh7+ {[%clk 0:00:11.6]} 40... Kg8 {[%clk 0:00:18.4]} 41. Qg3+ {[%clk 0:00:08.4]}
41... Qxg3 {[%clk 0:00:17.5]} 42. fxg3 {[%clk 0:00:09.3]} 42... b3 {[%clk
0:00:14.6]} 43. Nf5 {[%clk 0:00:08.5]} 43... b2 {[%clk 0:00:12.7]} 44. Rfg7+
{[%clk 0:00:09]} 44... Kf8 {[%clk 0:00:12]} 45. Rh8# {[%clk 0:00:09.9]} 1-0

[Event "Late-Titled-Tuesday-Blitz-March-05-2024"]
[Site "Chess.com"]
[Date "2024.03.05"]
[Round "9"]
[White "Jahonas"]
[Black "ninguno46"]
[Result "1-0"]
[WhiteElo "2392"]
[BlackElo "2486"]
[TimeControl "180+1"]
[EndTime "15:41:07 PST"]
[Termination "Jahonas won on time"]

1. d4 {[%clk 0:03:00.9]} 1... Nf6 {[%clk 0:02:53.3]} 2. Nf3 {[%clk 0:02:59.9]}
2... e6 {[%clk 0:02:53.6]} 3. Bf4 {[%clk 0:02:59.3]} 3... c5 {[%clk 0:02:52.4]}
4. e3 {[%clk 0:02:59]} 4... b6 {[%clk 0:02:52.7]} 5. c3 {[%clk 0:02:59.1]} 5...
Bb7 {[%clk 0:02:53]} 6. Bd3 {[%clk 0:02:58.3]} 6... Be7 {[%clk 0:02:53.4]} 7. h3
{[%clk 0:02:58.4]} 7... O-O {[%clk 0:02:52.7]} 8. O-O {[%clk 0:02:57.9]} 8...
cxd4 {[%clk 0:02:52.7]} 9. exd4 {[%clk 0:02:54.1]} 9... d6 {[%clk 0:02:52.6]}
10. Re1 {[%clk 0:02:53.7]} 10... Nbd7 {[%clk 0:02:51.9]} 11. Nbd2 {[%clk
0:02:53.2]} 11... Qc7 {[%clk 0:02:51.4]} 12. Bh2 {[%clk 0:02:52.7]} 12... Rfe8
{[%clk 0:02:51]} 13. Qe2 {[%clk 0:02:49.8]} 13... Bf8 {[%clk 0:02:50.9]} 14. a4
{[%clk 0:02:49.5]} 14... a6 {[%clk 0:02:50.2]} 15. Nc4 {[%clk 0:02:43]} 15... b5
{[%clk 0:02:41.5]} 16. axb5 {[%clk 0:02:31.7]} 16... axb5 {[%clk 0:02:40.9]} 17.
Na3 {[%clk 0:02:31.4]} 17... b4 {[%clk 0:02:37.3]} 18. cxb4 {[%clk 0:02:30.2]}
18... Qb6 {[%clk 0:02:34]} 19. b5 {[%clk 0:02:24.7]} 19... Bxf3 {[%clk
0:02:11.7]} 20. Qxf3 {[%clk 0:01:44.5]} 20... Qxd4 {[%clk 0:02:07.1]} 21. Qe2
{[%clk 0:01:06.4]} 21... d5 {[%clk 0:01:56.5]} 22. Red1 {[%clk 0:01:02.5]} 22...
Qb4 {[%clk 0:01:54]} 23. Rab1 {[%clk 0:00:50.2]} 23... Qa5 {[%clk 0:01:15.3]}
24. Nc2 {[%clk 0:00:47.8]} 24... Qb6 {[%clk 0:01:09.7]} 25. Nd4 {[%clk
0:00:43.1]} 25... e5 {[%clk 0:01:09.2]} 26. Nc6 {[%clk 0:00:38]} 26... e4 {[%clk
0:01:09.3]} 27. Bc2 {[%clk 0:00:38.2]} 27... e3 {[%clk 0:00:40.2]} 28. f3 {[%clk
0:00:15.9]} 28... g6 {[%clk 0:00:21.1]} 29. Kh1 {[%clk 0:00:15.3]} 29... Bh6
{[%clk 0:00:18.3]} 30. Bd3 {[%clk 0:00:15.1]} 30... Nh5 {[%clk 0:00:15.7]} 31.
g4 {[%clk 0:00:13.8]} 31... Nf4 {[%clk 0:00:14.2]} 32. Bxf4 {[%clk 0:00:13.7]}
32... Bxf4 {[%clk 0:00:14.8]} 33. Kg2 {[%clk 0:00:10.3]} 33... Nf8 {[%clk
0:00:12.8]} 34. Bc2 {[%clk 0:00:10.3]} 34... Ne6 {[%clk 0:00:08]} 35. Bb3 {[%clk
0:00:08]} 35... Bc7 {[%clk 0:00:07.3]} 36. Kh1 {[%clk 0:00:07.9]} 36... Nf4
{[%clk 0:00:06.5]} 37. Qe1 {[%clk 0:00:06]} 37... e2 {[%clk 0:00:03.3]} 38. Rxd5
{[%clk 0:00:05.5]} 38... Qe3 {[%clk 0:00:01.9]} 39. Rd4 {[%clk 0:00:02.8]} 39...
Qxf3+ {[%clk 0:00:01.4]} 40. Kh2 {[%clk 0:00:03]} 1-0

[Event "Late-Titled-Tuesday-Blitz-March-05-2024"]
[Site "Chess.com"]
[Date "2024.03.05"]
[Round "9"]
[White "IlanSchnaider"]
[Black "andrzej"]
[Result "1-0"]
[WhiteElo "2624"]
[BlackElo "2482"]
[TimeControl "180+1"]
[EndTime "15:41:11 PST"]
[Termination "IlanSchnaider won by checkmate"]

1. e4 {[%clk 0:02:53.5]} 1... e5 {[%clk 0:03:00.1]} 2. Nf3 {[%clk 0:02:52.6]}
2... Nf6 {[%clk 0:03:00.7]} 3. d4 {[%clk 0:02:52.3]} 3... Nxe4 {[%clk
0:03:00.6]} 4. Bd3 {[%clk 0:02:52.1]} 4... d5 {[%clk 0:03:00.9]} 5. Nxe5 {[%clk
0:02:52]} 5... Bd6 {[%clk 0:03:01.5]} 6. O-O {[%clk 0:02:51.8]} 6... O-O {[%clk
0:03:02.1]} 7. c4 {[%clk 0:02:51.9]} 7... c5 {[%clk 0:03:02.7]} 8. cxd5 {[%clk
0:02:46.6]} 8... Nf6 {[%clk 0:03:03]} 9. Bg5 {[%clk 0:02:10.6]} 9... cxd4 {[%clk
0:02:58.2]} 10. Nf3 {[%clk 0:02:10.8]} 10... Be7 {[%clk 0:02:43.1]} 11. Nxd4
{[%clk 0:01:57.3]} 11... h6 {[%clk 0:02:41.9]} 12. Bxf6 {[%clk 0:01:53.5]} 12...
Bxf6 {[%clk 0:02:42]} 13. Be4 {[%clk 0:01:44]} 13... Qb6 {[%clk 0:02:41.1]} 14.
Nb3 {[%clk 0:01:30.5]} 14... Bxb2 {[%clk 0:02:40.8]} 15. N1d2 {[%clk 0:01:31.2]}
15... Bxa1 {[%clk 0:02:41]} 16. Qxa1 {[%clk 0:01:31.4]} 16... Re8 {[%clk
0:02:35.6]} 17. Rc1 {[%clk 0:01:26.5]} 17... Nd7 {[%clk 0:02:13.7]} 18. Bf3
{[%clk 0:01:12.2]} 18... Ne5 {[%clk 0:02:09.7]} 19. h3 {[%clk 0:00:53.6]} 19...
Bf5 {[%clk 0:02:02.5]} 20. Re1 {[%clk 0:00:37.5]} 20... Nd3 {[%clk 0:01:57.7]}
21. Rf1 {[%clk 0:00:33.7]} 21... Re1 {[%clk 0:01:43.1]} 22. Rxe1 {[%clk
0:00:22.4]} 22... Qxf2+ {[%clk 0:01:43]} 23. Kh2 {[%clk 0:00:22.8]} 23... Nxe1
{[%clk 0:01:43.1]} 24. Qe5 {[%clk 0:00:23]} 24... Bc2 {[%clk 0:01:22.8]} 25. Be4
{[%clk 0:00:19.6]} 25... Bxb3 {[%clk 0:01:11.9]} 26. Nxb3 {[%clk 0:00:19.1]}
26... f6 {[%clk 0:00:51.7]} 27. Qe6+ {[%clk 0:00:18.8]} 27... Kh8 {[%clk
0:00:52.3]} 28. Qg4 {[%clk 0:00:13.8]} 28... Re8 {[%clk 0:00:36.1]} 29. d6
{[%clk 0:00:14.1]} 29... Qe3 {[%clk 0:00:11]} 30. d7 {[%clk 0:00:09]} 30... Rd8
{[%clk 0:00:11]} 31. Qf5 {[%clk 0:00:08.8]} 31... Kg8 {[%clk 0:00:09]} 32. Qe6+
{[%clk 0:00:04.8]} 32... Kf8 {[%clk 0:00:06.4]} 33. Qd6+ {[%clk 0:00:03.4]}
33... Kf7 {[%clk 0:00:03.8]} 34. Qd5+ {[%clk 0:00:02.1]} 34... Kf8 {[%clk
0:00:03.6]} 35. Nc5 {[%clk 0:00:01.7]} 35... Rxd7 {[%clk 0:00:03]} 36. Nxd7+
{[%clk 0:00:01.8]} 36... Ke7 {[%clk 0:00:02.6]} 37. Nc5 {[%clk 0:00:02.5]} 37...
Qf4+ {[%clk 0:00:03.1]} 38. Kg1 {[%clk 0:00:02.8]} 38... Qe3+ {[%clk 0:00:03.2]}
39. Kf1 {[%clk 0:00:03.4]} 39... Nd3 {[%clk 0:00:02.7]} 40. Qd7+ {[%clk
0:00:03]} 40... Kf8 {[%clk 0:00:02.7]} 41. Ne6+ {[%clk 0:00:03.9]} 41... Kg8
{[%clk 0:00:03.1]} 42. Qxg7# {[%clk 0:00:04.8]} 1-0

[Event "Late-Titled-Tuesday-Blitz-March-05-2024"]
[Site "Chess.com"]
[Date "2024.03.05"]
[Round "9"]
[White "NtcPou"]
[Black "howitzer14"]
[Result "0-1"]
[WhiteElo "2029"]
[BlackElo "2985"]
[TimeControl "180+1"]
[EndTime "15:41:11 PST"]
[Termination "howitzer14 won by checkmate"]

1. e4 {[%clk 0:03:00.9]} 1... c5 {[%clk 0:02:46.2]} 2. Nf3 {[%clk 0:03:00.1]}
2... d6 {[%clk 0:02:44.7]} 3. Bb5+ {[%clk 0:02:59.2]} 3... Nd7 {[%clk
0:02:43.6]} 4. a4 {[%clk 0:02:58.4]} 4... Nf6 {[%clk 0:02:42.9]} 5. Nc3 {[%clk
0:02:56.1]} 5... e5 {[%clk 0:02:39.8]} 6. O-O {[%clk 0:02:54.3]} 6... Be7 {[%clk
0:02:39.5]} 7. Re1 {[%clk 0:02:53.9]} 7... O-O {[%clk 0:02:39.5]} 8. d3 {[%clk
0:02:53.1]} 8... h6 {[%clk 0:02:38.2]} 9. Ne2 {[%clk 0:02:39.2]} 9... Nb8 {[%clk
0:02:30.4]} 10. c3 {[%clk 0:02:35.8]} 10... Be6 {[%clk 0:02:16.1]} 11. a5 {[%clk
0:02:34.7]} 11... a6 {[%clk 0:02:14]} 12. Ba4 {[%clk 0:02:19.6]} 12... Qxa5
{[%clk 0:02:04.2]} 13. Be3 {[%clk 0:02:05.7]} 13... b5 {[%clk 0:01:55.7]} 14.
Bc2 {[%clk 0:02:04.1]} 14... Qc7 {[%clk 0:01:54.1]} 15. h3 {[%clk 0:02:01.9]}
15... d5 {[%clk 0:01:44.1]} 16. Ng3 {[%clk 0:01:47.8]} 16... dxe4 {[%clk
0:01:19.8]} 17. dxe4 {[%clk 0:01:44.1]} 17... Re8 {[%clk 0:01:15.5]} 18. Qd2
{[%clk 0:01:12.5]} 18... Bf8 {[%clk 0:01:15.4]} 19. Rad1 {[%clk 0:01:12.4]}
19... Nbd7 {[%clk 0:01:11.8]} 20. Qc1 {[%clk 0:01:10.7]} 20... c4 {[%clk
0:01:07]} 21. Nh4 {[%clk 0:01:10]} 21... Rad8 {[%clk 0:01:02.3]} 22. Nhf5 {[%clk
0:01:08.9]} 22... Kh7 {[%clk 0:01:02.3]} 23. Kh2 {[%clk 0:00:55.4]} 23... Ng8
{[%clk 0:00:53.9]} 24. Bd2 {[%clk 0:00:43.9]} 24... Nc5 {[%clk 0:00:43.2]} 25.
Ne3 {[%clk 0:00:43.4]} 25... Nd3 {[%clk 0:00:38.3]} 26. Bxd3 {[%clk 0:00:43.4]}
26... Rxd3 {[%clk 0:00:39.2]} 27. Nef5 {[%clk 0:00:36.4]} 27... g6 {[%clk
0:00:37.1]} 28. Ne3 {[%clk 0:00:36.3]} 28... Red8 {[%clk 0:00:35.5]} 29. Nef1
{[%clk 0:00:36]} 29... Qd7 {[%clk 0:00:33.5]} 30. Qc2 {[%clk 0:00:26.2]} 30...
h5 {[%clk 0:00:33.6]} 31. Ne3 {[%clk 0:00:25.7]} 31... Rxd2 {[%clk 0:00:31.9]}
32. Qc1 {[%clk 0:00:18.5]} 32... Rxd1 {[%clk 0:00:31.1]} 33. Rxd1 {[%clk
0:00:18.9]} 33... Qe8 {[%clk 0:00:31.2]} 34. Re1 {[%clk 0:00:18.5]} 34... Bh6
{[%clk 0:00:30.9]} 35. Qc2 {[%clk 0:00:18.1]} 35... h4 {[%clk 0:00:27.3]} 36.
Ngf1 {[%clk 0:00:17.7]} 36... Bf4+ {[%clk 0:00:24.7]} 37. g3 {[%clk 0:00:16.8]}
37... Bxe3 {[%clk 0:00:24.3]} 38. Nxe3 {[%clk 0:00:16.9]} 38... Nf6 {[%clk
0:00:24.9]} 39. g4 {[%clk 0:00:16.1]} 39... Kg7 {[%clk 0:00:21.7]} 40. Re2
{[%clk 0:00:15.6]} 40... Nh7 {[%clk 0:00:21.8]} 41. f3 {[%clk 0:00:15.3]} 41...
Ng5 {[%clk 0:00:21.9]} 42. Ng2 {[%clk 0:00:15.4]} 42... Nxf3+ {[%clk 0:00:21.8]}
43. Kh1 {[%clk 0:00:16]} 43... Rd3 {[%clk 0:00:21]} 44. Ne1 {[%clk 0:00:14.4]}
44... Qd7 {[%clk 0:00:20.7]} 45. Nxf3 {[%clk 0:00:14]} 45... Rxf3 {[%clk
0:00:20.4]} 46. Kg2 {[%clk 0:00:14.4]} 46... Bxg4 {[%clk 0:00:20.7]} 47. Rf2
{[%clk 0:00:14.3]} 47... Rg3+ {[%clk 0:00:18.5]} 48. Kh2 {[%clk 0:00:14]} 48...
Rxh3+ {[%clk 0:00:18.8]} 49. Kg2 {[%clk 0:00:14.4]} 49... Rg3+ {[%clk
0:00:19.7]} 50. Kh2 {[%clk 0:00:14.8]} 50... Bf3 {[%clk 0:00:20.1]} 51. Qc1
{[%clk 0:00:12.7]} 51... Qh3# {[%clk 0:00:20.4]} 0-1

[Event "Late-Titled-Tuesday-Blitz-March-05-2024"]
[Site "Chess.com"]
[Date "2024.03.05"]
[Round "9"]
[White "Arystanner"]
[Black "Slovak_fighter2000"]
[Result "1/2-1/2"]
[WhiteElo "2856"]
[BlackElo "2647"]
[TimeControl "180+1"]
[EndTime "15:41:13 PST"]
[Termination "Game drawn - insufficient material"]

1. e4 {[%clk 0:02:55.4]} 1... e6 {[%clk 0:02:59.8]} 2. d4 {[%clk 0:02:55.3]}
2... d5 {[%clk 0:03:00.2]} 3. e5 {[%clk 0:02:55.9]} 3... c5 {[%clk 0:03:00]} 4.
c3 {[%clk 0:02:56.6]} 4... Qb6 {[%clk 0:03:00.4]} 5. Nf3 {[%clk 0:02:57.4]} 5...
Bd7 {[%clk 0:03:00.8]} 6. Bd3 {[%clk 0:02:57.9]} 6... Bb5 {[%clk 0:03:00.8]} 7.
dxc5 {[%clk 0:02:57.9]} 7... Bxc5 {[%clk 0:03:00.1]} 8. b4 {[%clk 0:02:58.5]}
8... Bf8 {[%clk 0:02:58.6]} 9. Be3 {[%clk 0:02:53.2]} 9... Qa6 {[%clk
0:02:58.2]} 10. Bxb5+ {[%clk 0:02:53.7]} 10... Qxb5 {[%clk 0:02:59.1]} 11. Nd4
{[%clk 0:02:52.9]} 11... Qd7 {[%clk 0:02:56.1]} 12. O-O {[%clk 0:02:52.7]} 12...
Nc6 {[%clk 0:02:46.6]} 13. f4 {[%clk 0:02:53.1]} 13... Nxd4 {[%clk 0:02:46]} 14.
Bxd4 {[%clk 0:02:52.1]} 14... Ne7 {[%clk 0:02:43.4]} 15. Nd2 {[%clk 0:02:51.7]}
15... Nf5 {[%clk 0:02:38.7]} 16. Nb3 {[%clk 0:02:52.3]} 16... Be7 {[%clk
0:02:36.1]} 17. Qd3 {[%clk 0:02:52.3]} 17... h5 {[%clk 0:02:30.2]} 18. Bf2
{[%clk 0:02:47.7]} 18... Qc7 {[%clk 0:02:25.5]} 19. Rfc1 {[%clk 0:02:46.4]}
19... b6 {[%clk 0:02:20.3]} 20. c4 {[%clk 0:02:46.5]} 20... dxc4 {[%clk
0:02:16.6]} 21. Rxc4 {[%clk 0:02:47.1]} 21... Qb7 {[%clk 0:02:08.7]} 22. Rac1
{[%clk 0:02:47.5]} 22... O-O {[%clk 0:01:58.6]} 23. Rc7 {[%clk 0:02:45.1]} 23...
Qd5 {[%clk 0:01:58.5]} 24. Qxd5 {[%clk 0:02:45.1]} 24... exd5 {[%clk 0:01:59.4]}
25. b5 {[%clk 0:02:44.8]} 25... Ba3 {[%clk 0:01:49.5]} 26. Rd1 {[%clk
0:02:40.2]} 26... Rfd8 {[%clk 0:01:42.4]} 27. h3 {[%clk 0:02:40.5]} 27... Kf8
{[%clk 0:01:12.8]} 28. g4 {[%clk 0:02:40]} 28... hxg4 {[%clk 0:01:13.7]} 29.
hxg4 {[%clk 0:02:40.8]} 29... Ne7 {[%clk 0:01:13.9]} 30. Bh4 {[%clk 0:02:34.5]}
30... Rdc8 {[%clk 0:01:07.8]} 31. Bxe7+ {[%clk 0:02:32.1]} 31... Bxe7 {[%clk
0:01:08.7]} 32. Rxc8+ {[%clk 0:02:32.8]} 32... Rxc8 {[%clk 0:01:08.9]} 33. Rxd5
{[%clk 0:02:33.7]} 33... Rc4 {[%clk 0:00:56.2]} 34. Rd7 {[%clk 0:02:32.1]} 34...
Rxf4 {[%clk 0:00:51.4]} 35. Rxa7 {[%clk 0:02:32.7]} 35... Rxg4+ {[%clk
0:00:51.2]} 36. Kf1 {[%clk 0:02:32.8]} 36... Bd8 {[%clk 0:00:35.4]} 37. e6
{[%clk 0:01:46.1]} 37... Rf4+ {[%clk 0:00:33.6]} 38. Kg2 {[%clk 0:01:46.7]}
38... fxe6 {[%clk 0:00:31.9]} 39. Rd7 {[%clk 0:01:46.6]} 39... Ke8 {[%clk
0:00:27.9]} 40. Rxg7 {[%clk 0:01:45.8]} 40... Rb4 {[%clk 0:00:25.9]} 41. Kf3
{[%clk 0:01:41.8]} 41... Rxb5 {[%clk 0:00:25.6]} 42. Nd4 {[%clk 0:01:42.4]}
42... Bf6 {[%clk 0:00:16.7]} 43. Rg8+ {[%clk 0:01:17.5]} 43... Kf7 {[%clk
0:00:17.1]} 44. Nxb5 {[%clk 0:01:18.2]} 44... Kxg8 {[%clk 0:00:16.9]} 45. Ke4
{[%clk 0:01:17.4]} 45... Kf7 {[%clk 0:00:16.6]} 46. Nd6+ {[%clk 0:01:18.1]}
46... Kf8 {[%clk 0:00:14]} 47. a4 {[%clk 0:01:16.8]} 47... Bd8 {[%clk
0:00:11.4]} 48. Nc4 {[%clk 0:01:04.4]} 48... Bc7 {[%clk 0:00:10.1]} 49. Na3
{[%clk 0:01:00.8]} 49... Ke7 {[%clk 0:00:10]} 50. Nb5 {[%clk 0:01:01.6]} 50...
Kd7 {[%clk 0:00:10.2]} 51. Kd4 {[%clk 0:01:00.3]} 51... Kc6 {[%clk 0:00:10.1]}
52. Kc4 {[%clk 0:00:57.3]} 52... Bb8 {[%clk 0:00:10.5]} 53. Nd4+ {[%clk
0:00:56.3]} 53... Kd7 {[%clk 0:00:10.8]} 54. Nb5 {[%clk 0:00:55.1]} 54... Be5
{[%clk 0:00:09]} 55. Kd3 {[%clk 0:00:55.4]} 55... Kc6 {[%clk 0:00:08.3]} 56. Kc4
{[%clk 0:00:56]} 56... Bf6 {[%clk 0:00:07.4]} 57. Na7+ {[%clk 0:00:55.9]} 57...
Kb7 {[%clk 0:00:07.7]} 58. Nb5 {[%clk 0:00:56]} 58... e5 {[%clk 0:00:07]} 59.
Kd5 {[%clk 0:00:56.2]} 59... Bh8 {[%clk 0:00:06.7]} 60. Nd6+ {[%clk 0:00:52.8]}
60... Ka6 {[%clk 0:00:07]} 61. Nc4 {[%clk 0:00:53.5]} 61... b5 {[%clk
0:00:03.9]} 62. axb5+ {[%clk 0:00:54.4]} 62... Kxb5 {[%clk 0:00:04.4]} 63. Nxe5
{[%clk 0:00:55.3]} 1/2-1/2